Cogmind - Beta 16 @@@ ROGUE MODE // 2025.10.30 @ 01:09:13 Player: souux Result: Destroyed by G-67 Veteran with Field Laser Performance ------------- Evolutions (6) 3000 Regions Visited (7) 1400 Robots Destroyed (48) 240 Value Destroyed (1598) 1598 Prototype IDs (35) 700 Alien Tech Used (0) 0 Bonus (845) 845 TOTAL SCORE: 7783 Bonus ------- Follower Combat Kills 45 Registered with UFD 300 Met Optimus in HQ 500 Cogmind --------- Core Integrity 0/1150 Matter 297/300 Energy 100/100 System Corruption 0% Temperature Cool (12) Movement Core (50) Location -4/Factory Parts ------- > --- POWER (2) -------- (None) > --- PROPULSION (6) --- Improved Gyrokinetic Inverter > --- UTILITY (9) ------ Hacking Suite > --- WEAPON (2) ------- (None) > --- INVENTORY (5) ---- Impulse Thruster Scrap Suit Graphene Brace Peak State ------------ > --- POWER ------------ Improved Ion Engine > --- PROPULSION ------- Improved Medium Treads Improved Medium Treads Improved Medium Treads Improved Medium Treads Improved Medium Treads Improved Medium Treads > --- UTILITY ---------- High-capacity Storage Unit Advanced Signal Interpreter Improved Medium Armor Plating Heavy Insulated Plating A0-MCA's Component Scanner > --- WEAPON ----------- Gatling Laser Maul > --- INVENTORY -------- Light Nuclear Core Scrap Suit Enhanced Optical Array Advanced Sensor Array Advanced Terrain Scanner Surveybot 17 Chip Jamming Amplifier Improved Medium Armor Plating Makeshift Hacking Suite Makeshift Hacking Suite Improved Hacking Suite Component Analysis Suite Heavy Plasma Cannon Overtuned Barrage Gun Overtuned Barrage Gun Rocket Launcher Subdweller Shrapnel Launcher [Rating: 74] Favorites ----------- Power Light Ion Engine Engine Light Ion Engine Power Core Light Nuclear Core Propulsion Improved Medium Treads Treads Improved Medium Treads Wheel Compact Wheel Hover Unit Improved Gyrokinetic Inverter Flight Unit Field Propulsion Drive Utility Large Storage Unit Device Seismic Detector Storage Large Storage Unit Processor A0-MCA's Component Scanner Hackware Makeshift Hacking Suite Protection Improved Medium Armor Plating Weapon Light Assault Rifle Energy Gun Particle Gun Energy Cannon Subdweller Beam Cannon Ballistic Gun Light Assault Rifle Launcher Rocket Launcher Special Weapon CPS Tube Impact Weapon Maul Build | -11 -10 -10 -9 -6 -5 -5 -4 ------- Run | Yrd Mat Sub Scr Fac Fac Ext Fac Slots Evolved 12 | . . . . 8 2 . 2 Power 1 | . . . . . 1 . . Propulsion 4 | . . . . 4 . . . Utility 7 | . . . . 4 1 . 2 Weapon . | . . . . . . . . Parts Attached 78 | 7 7 5 13 24 10 8 4 Power 10 | 1 2 1 1 1 2 1 1 Engine 4 | 1 . 1 1 . 1 . . Core 6 | . 2 . . 1 1 1 1 Reactor . | . . . . . . . . Propulsion 26 | 2 2 1 4 9 4 2 2 Treads 19 | 2 2 1 4 9 1 . . Leg . | . . . . . . . . Wheel 3 | . . . . . 3 . . Hover 3 | . . . . . . 1 2 Flight 1 | . . . . . . 1 . Utility 25 | 2 1 1 5 8 3 4 1 Device 9 | 1 . 1 2 2 1 1 1 Storage 4 | 1 1 . 1 . . 1 . Processor 4 | . . . 2 1 1 . . Hackware 3 | . . . . . 1 2 . Protection 5 | . . . . 5 . . . Artifact . | . . . . . . . . Weapon 17 | 2 2 2 3 6 1 1 . Energy Gun 2 | . 1 . . 1 . . . Energy Cannon 4 | . . 1 1 1 1 . . Ballistic Gun 8 | 2 1 1 . 3 . 1 . Ballistic Cannon . | . . . . . . . . Launcher 1 | . . . 1 . . . . Special Weapon 1 | . . . 1 . . . . Impact Weapon 1 | . . . . 1 . . . Slashing Weapon . | . . . . . . . . Piercing Weapon . | . . . . . . . . Special Melee Weapon . | . . . . . . . . Unidentified Prototypes 3 | . . . . . 2 . 1 Parts Lost 30 | . 1 1 . 16 . 5 7 Power 5 | . . . . 2 . 2 1 Propulsion 11 | . . . . 6 . 2 3 Utility 10 | . . 1 . 6 . 1 2 Weapon 4 | . 1 . . 2 . . 1 Highest Loss Streak 11 | . 1 1 . 11 . 3 6 To Critical Strikes 1 | . . . . 1 . . . Average Backups 12 | 6 9 14 15 15 3 3 2 Power . | . 1 . . . . . . Propulsion 3 | 3 5 5 2 . . . . Utility 4 | . 1 3 6 10 1 2 1 Weapon 3 | 1 1 5 4 4 . . . Tool/Special . | . . . . . . . . Unused Backups 39 | . 6 3 18 7 1 1 3 Power 2 | . . . 2 . . . . Propulsion 10 | . 4 . 5 . . . 1 Utility 15 | . . . 5 6 1 1 2 Weapon 10 | . 2 3 4 1 . . . Tool/Special 2 | . . . 2 . . . . Average Slot Usage (%) 77 | . 99 100 71 92 24 40 27 Engine 8 | . 5 9 14 5 1 3 . Core 2 | . 8 4 . . . . 2 Treads 25 | . 28 28 28 36 4 3 . Device 9 | . 14 14 10 7 . 3 2 Storage 10 | . 14 14 14 5 . . . Processor 3 | . . . 3 12 4 3 . Protection 1 | . . . . 8 . . . Energy Gun 1 | . 5 4 . . . . . Energy Cannon 2 | . . 8 . 3 3 3 . Ballistic Gun 6 | . 22 15 . . . . 3 Peak Build Rating 74 | 7 11 13 29 74 32 34 37 Average Rating 21 | 5 9 11 17 61 22 24 28 On Entrance 14 | . 7 11 13 29 2 32 20 Avg Prop Armor Cover (%) 20 | . . . . 7 33 17 . Naked Turns 82 | . . . . 17 3 62 . Heaviest Build 76 | 13 31 34 59 76 17 39 22 Greatest Support 180 | 40 40 40 60 180 48 48 22 Greatest Overweight (x) 3 | 1 . . 3 1 1 1 2 Average Overweight (x) . | . . . . . . . . Largest Inventory Capacity 20 | 8 15 15 20 20 5 15 5 Average Capacity 13 | 7 10 15 16 19 5 5 5 Most Carried 20 | 8 15 15 20 20 5 6 5 Average Carried 13 | 6 9 14 16 17 4 4 3 Final Capacity 20 | 8 15 15 20 5 5 5 5 Final Carried 20 | 7 15 15 20 5 5 3 4 Class Distribution -------------------- 68% | Mutant 17% | Scavenger-Mutant 6% | Scavenger-Assassin 3% | Derelict-Mutant Dominant Class ---------------- Mutant | -10/Materials Mutant | -10/Subcaves Mutant | -9/Scraptown Scavenger-Assassin | -6/Factory Mutant | -5/Factory Scavenger-Mutant | -5/Extension Hacker-Mutant | -4/Factory Resources | -11 -10 -10 -9 -6 -5 -5 -4 ----------- Run | Yrd Mat Sub Scr Fac Fac Ext Fac Matter Collected 1550 | 296 175 126 238 312 313 70 20 Remotely . | . . . . . . . . Salvage Created 1930 | 115 464 96 47 623 378 207 . Parts 100 | 14 29 8 2 31 12 4 . Haulers Intercepted 4 | . 2 . . . . 2 . Recyclers Shooed 3 | . . . . 2 . 1 . Parts Field Recycled . | . . . . . . . . Retrieved Matter . | . . . . . . . . Parts Self-Destructed 9 | . . 9 . . . . . Prevented . | . . . . . . . . Parts Restored . | . . . . . . . . Kills | -11 -10 -10 -9 -6 -5 -5 -4 ------- Run | Yrd Mat Sub Scr Fac Fac Ext Fac Combat Hostiles Destroyed 32 | . 10 4 1 14 2 1 . Guns 19 | . 10 4 . 5 . . . Cannons 4 | . . . . 1 2 1 . AOE 8 | . . . 1 7 . . . Classes Destroyed 10 | 2 3 1 1 3 . . . Builder 3 | . . . . 3 . . . Tunneler 5 | 4 . . . . 1 . . Hauler 4 | . 2 . . . . 2 . Recycler 3 | 1 . . . . 2 . . Swarmer 7 | . 3 3 . 1 . . . Grunt 18 | . 7 . . 11 . . . Hunter 2 | . . . . 2 . . . Programmer 4 | . . . . 1 2 1 . Subdweller 1 | . . 1 . . . . . Ranger 1 | . . . 1 . . . . Best Kill Streak 4 | 2 4 3 1 4 2 2 . Combat Bots Only 4 | . 4 3 1 3 2 1 . Max Kills in Single Turn 2 | 1 1 1 1 2 1 1 . Gunslinging . | . . . . . . . . Exploded 1 | . . . 1 1 . . . Melee . | . . . . . . . . Uniques/NPCs Destroyed . | . . . . . . . . Combat | -11 -10 -10 -9 -6 -5 -5 -4 -------- Run | Yrd Mat Sub Scr Fac Fac Ext Fac Hostile Shots Fired 548 | . 51 20 . 270 8 88 111 Missed 175 | . 11 6 . 77 2 37 42 Hits 373 | . 40 14 . 193 6 51 69 Melee 1 | . . . . . . . 1 Projectile 372 | . 40 14 . 193 6 51 68 AOE 2 | . . . . . . . 2 Critical Strikes 15 | . 1 . . 8 1 2 3 Part Disruptions 1 | . . . . 1 . . . Damage Taken 7133 | . 472 239 . 3431 135 1224 1632 Core 2438 | . 34 52 . 405 62 723 1162 Absorbed by Shields . | . . . . . . . . Ignored by Resistances 18 | . . . . 18 . . . Core Remaining (%) 59 | 100 . . 65 52 . 21 . Volleys Fired 191 | 13 56 24 1 71 10 16 . Largest 2 | 2 2 2 1 1 1 1 . Hottest 100 | 40 85 100 33 90 90 90 . Shots Fired 274 | 26 108 41 1 72 10 16 . Gun 205 | 26 108 35 . 36 . . . Cannon 50 | . . 6 . 18 10 16 . Launcher 19 | . . . 1 18 . . . Special . | . . . . . . . . Kinetic 172 | 26 100 31 . 15 . . . Thermal 83 | . 8 10 . 39 10 16 . Explosive 19 | . . . 1 18 . . . Electromagnetic . | . . . . . . . . Robot Hit Streak 12 | 10 10 11 2 12 3 9 . Robot Miss Streak 5 | 2 4 3 . 5 3 2 . Penetration Max 1 | . . . . 1 . . . Secondary Targets 1 | . 1 . . . . . . Max Gunslinging Chain 1 | . 1 . . . . . . Shots Hit Robots 168 | 19 73 16 1 40 6 13 . Core Hits 111 | 10 31 5 2 50 6 6 1 Critical Kills 1 | . . . . 1 . . . Critical Parts Destroyed . | . . . . . . . . Critical Strikes 2 | . . 1 . 1 . . . Destroy 2 | . . 1 . 1 . . . Melee Attacks . | . . . . . . . . Impact . | . . . . . . . . Slashing . | . . . . . . . . Piercing . | . . . . . . . . Sneak Attacks . | . . . . . . . . Combat Hostiles . | . . . . . . . . Follow-up Attacks . | . . . . . . . . Damage Inflicted 4352 | 152 635 196 125 2299 327 590 28 Guns 1770 | 152 634 196 . 788 . . . Cannons 952 | . . . . 167 263 522 . Explosions 1555 | . . . 125 1332 55 43 . Melee . | . . . . . . . . Ramming 75 | . 1 . . 12 9 25 28 Kinetic 1126 | 152 522 180 . 272 . . . Thermal 1741 | . 112 16 . 730 318 565 . Explosive 1342 | . . . 125 1217 . . . Electromagnetic 68 | . . . . 68 . . . Impact . | . . . . . . . . Slashing . | . . . . . . . . Piercing . | . . . . . . . . Highest Corruption 5 | . 2 2 2 5 1 5 . Average Corruption 2 | . 2 2 2 4 1 2 . Corruption Purged . | . . . . . . . . Corruption Blocked . | . . . . . . . . Effects 96 | . 5 21 36 25 3 6 . Message Errors 29 | . 1 8 12 4 . 4 . Matter Fused 24 | . 2 2 8 9 1 2 . Heat Flow Errors 8 | . 1 3 4 . . . . Energy Discharges 10 | . . 2 4 2 2 . . Parts Rejected 1 | . . 1 . . . . . Parts Fused 1 | . . . . 1 . . . Data Loss (minor) 10 | . . 3 4 3 . . . Data Loss (major) 7 | . 1 . 3 3 . . . Misfires 4 | . . 1 . 3 . . . Alerts 2 | . . 1 1 . . . . Overload Shots . | . . . . . . . . Overflow Damage 42 | . . . . 26 . 16 . Projectiles 16 | . . . . . . 16 . Explosions 26 | . . . . 26 . . . Melee . | . . . . . . . . Knockbacks 2 | . . . . 1 . . 1 Impact 2 | . . . . 1 . . 1 Kinetic . | . . . . . . . . Secondary . | . . . . . . . . Self-Inflicted Damage 410 | . . . . 377 10 12 11 Shots 12 | . . . . 11 1 . . Rammed 19 | . 1 . . 2 3 2 11 Targets Rammed 20 | . 1 . . 2 4 2 11 Kicked . | . . . . . . . . Crushed 1 | . . . . . 1 . . Highest Temperature 253 | . 138 201 207 253 88 44 1 Average Temperature 66 | . 36 111 90 85 32 17 1 Received Heat Transfer 1135 | . 225 . . 495 . 96 319 Siege Activations . | . . . . . . . . Martial Activations . | . . . . . . . . Shielding Activations . | . . . . . . . . Robots Disrupted 1 | . . . . 1 . . . Combat Hostiles 1 | . . . . 1 . . . Robots Corrupted . | . . . . . . . . Combat Hostiles . | . . . . . . . . Parts Fried . | . . . . . . . . Impact Corruptions . | . . . . . . . . Robots Melted 1 | . . . . 1 . . . Combat Hostiles 1 | . . . . 1 . . . Parts Melted 4 | . 1 . . 3 . . . Heat Transferred 1781 | . 259 37 . 1385 50 50 . Parts Sabotaged . | . . . . . . . . Parts Stolen . | . . . . . . . . Parts Stripped . | . . . . . . . . Power Chain Reactions 3 | . . . . 1 1 1 . Alert | -11 -10 -10 -9 -6 -5 -5 -4 ------- Run | Yrd Mat Sub Scr Fac Fac Ext Fac Maximum Alert Level 1 | . . . . 1 . . . Low Security (%) 95 | 100 100 . . 85 100 100 100 Level 1 4 | . . . . 14 . . . Level 2 . | . . . . . . . . Level 3 . | . . . . . . . . Level 4 . | . . . . . . . . Level 5 . | . . . . . . . . High Security . | . . . . . . . . Max Security . | . . . . . . . . Peak Influence 375 | 10 82 . . 375 138 35 45 Initial 138 | . . . . . 138 2 24 Average 30 | 1 18 . . 59 37 3 6 Influence Increases 1304 | 25 324 70 . 655 75 110 45 Destroy 0b10 Robot/C 620 | . 200 60 . 300 40 20 . Destroy 0b10 Robot/NC 75 | 25 10 . . 15 15 10 . Destroy Leader 144 | . 54 10 . 60 10 10 . Allied During Kill 2 | . . . . 2 . . . Successful Hack 50 | . 45 . . 5 . . . Disable Machine 180 | . . . . 180 . . . Destroy Structure 98 | . . . . 78 10 10 . Lose Combat Pursuer 135 | . 15 . . 15 . 60 45 Influence Decreases 1299 | 25 324 70 . 371 354 65 90 Entered New Map 175 | . . . . . 146 3 26 Time Decay 914 | 25 314 70 . 219 208 44 34 Lost Part 210 | . 10 . . 152 . 18 30 Squads Dispatched 15 | . 1 . . 12 1 . 1 Investigation 2 | . . . . 2 . . . Extermination 4 | . . . . 2 1 . 1 Reinforcement 6 | . 1 . . 5 . . . Assault . | . . . . . . . . Garrison 3 | . . . . 3 . . . Intercept . | . . . . . . . . Searches Triggered . | . . . . . . . . Construction Impeded 1 | . . . . 1 . . . Haulers Reinforced 2 | . . . . 2 . . . Active Scanning Responses . | . . . . . . . . Cargo Convoy Interrupts . | . . . . . . . . Stealth | -11 -10 -10 -9 -6 -5 -5 -4 --------- Run | Yrd Mat Sub Scr Fac Fac Ext Fac Distress Signals 5 | . 3 . . 2 . . . Communications Jammed . | . . . . . . . . Distress Signals . | . . . . . . . . Times Spotted 81 | . 22 4 5 23 2 9 16 Peak Tracking Total 10 | . 5 3 3 6 1 7 10 Tactical Retreats 5 | . 1 . . 1 . 2 1 ECM-based Alert Blocks 3 | . . . . . . . 3 Traps | -11 -10 -10 -9 -6 -5 -5 -4 ------- Run | Yrd Mat Sub Scr Fac Fac Ext Fac Traps Triggered 6 | . 1 1 . 2 . . 2 Indirectly . | . . . . . . . . Trap Hack Attempts . | . . . . . . . . Triggered . | . . . . . . . . Disarmed . | . . . . . . . . Reprogrammed . | . . . . . . . . Reused . | . . . . . . . . Traps Extracted . | . . . . . . . . Installed . | . . . . . . . . Triggered . | . . . . . . . . Machines | -11 -10 -10 -9 -6 -5 -5 -4 ---------- Run | Yrd Mat Sub Scr Fac Fac Ext Fac Machines Disabled 13 | . . 1 . 12 . . . Max in Single Turn 4 | . . 1 . 4 . . . Garrison Access 1 | . . . . . 1 . . Machines Repaired . | . . . . . . . . Machines Dismantled . | . . . . . . . . Machines Sabotaged . | . . . . . . . . Overloaded Fab Kills . | . . . . . . . . Hacking | -11 -10 -10 -9 -6 -5 -5 -4 --------- Run | Yrd Mat Sub Scr Fac Fac Ext Fac Machines Accessed 21 | . 7 1 7 3 3 . . Terminals 10 | . 7 . . 2 1 . . Fabricators . | . . . . . . . . Repair Stations . | . . . . . . . . Recycling Units 2 | . . . . 1 1 . . Scanalyzers . | . . . . . . . . Garrison Access 1 | . . . . . 1 . . Total Hacks 80 | . 27 1 43 4 5 . . Successful 67 | . 18 1 43 2 3 . . Failed 13 | . 9 . . 2 2 . . Catastrophic 1 | . . . . . 1 . . Database Lockouts . | . . . . . . . . Manual 26 | . 23 . . 3 . . . Terminals 31 | . 27 . . 3 1 . . Fabricators . | . . . . . . . . Repair Stations . | . . . . . . . . Recycling Units 3 | . . . . 1 2 . . Scanalyzers . | . . . . . . . . Garrison Access 2 | . . . . . 2 . . Terminal Hacks 51 | . 5 1 43 1 1 . . Record 42 | . . . 42 . . . . Prototype ID Bank 2 | . 2 . . . . . . Open DSF 2 | . . . . 1 1 . . Recall Investigation 1 | . 1 . . . . . . Hauler Manifests 1 | . 1 . . . . . . Zone Layout 1 | . 1 . . . . . . Proto ID Catalog 2 | . . 1 1 . . . . Fabricator Hacks . | . . . . . . . . Repair Station Hacks . | . . . . . . . . Recycling Unit Hacks 1 | . . . . . 1 . . Retrieve Matter 1 | . . . . . 1 . . Scanalyzer . | . . . . . . . . Garrison Access Hacks 1 | . . . . . 1 . . Seal Access 1 | . . . . . 1 . . Unauthorized Hacks 14 | . 13 . . 1 . . . Terminals 13 | . 13 . . . . . . Botnet 6 | . 6 . . . . . . Skim 7 | . 7 . . . . . . Fabricators . | . . . . . . . . Repair Stations . | . . . . . . . . Recycling Units 1 | . . . . 1 . . . Fedlink 1 | . . . . 1 . . . Scanalyzers . | . . . . . . . . Garrison Access . | . . . . . . . . Data Cores Recovered . | . . . . . . . . Used . | . . . . . . . . Hacking Detections 8 | . 6 . . 2 . . . Full Trace Events 1 | . 1 . . . . . . Feedback Events . | . . . . . . . . Feedback Blocked . | . . . . . . . . Robot Schematics Acquired . | . . . . . . . . Robots Built . | . . . . . . . . Authchips . | . . . . . . . . Time . | . . . . . . . . Total Robot Build Rating . | . . . . . . . . Part Schematics Acquired . | . . . . . . . . Parts Built . | . . . . . . . . Authchips . | . . . . . . . . Time . | . . . . . . . . Total Part Build Rating . | . . . . . . . . Part Studies Acquired . | . . . . . . . . Parts Repaired . | . . . . . . . . Time . | . . . . . . . . Parts Recycled . | . . . . . . . . Recycled Matter . | . . . . . . . . Retrieved Matter . | . . . . . . . . Retrieved Components . | . . . . . . . . Parts Scanalyzed . | . . . . . . . . Part Schematics Acquired . | . . . . . . . . Parts Damaged . | . . . . . . . . Bothacking | -11 -10 -10 -9 -6 -5 -5 -4 ------------ Run | Yrd Mat Sub Scr Fac Fac Ext Fac Used RIF Installer . | . . . . . . . . Robots Hacked . | . . . . . . . . Non-combat . | . . . . . . . . Combat . | . . . . . . . . Robot Hacks Applied . | . . . . . . . . Relay Couplers Released . | . . . . . . . . Fabnet Peak Effective % . | . . . . . . . . Robots Rewired 1 | . . . . 1 . . . Allies Hacked . | . . . . . . . . Hacks Repelled . | . . . . . . . . Allies | -11 -10 -10 -9 -6 -5 -5 -4 -------- Run | Yrd Mat Sub Scr Fac Fac Ext Fac Total Allies 1 | . . . . 1 . . . Largest Group 1 | . . . . 1 . . . Highest-Rated Group 29 | . . . . 29 . . . Highest-Rated Ally 29 | . . . . 29 . . . Total Orders . | . . . . . . . . Ally Attacks 5 | . . . . 5 . . . Total Damage 89 | . . . . 89 . . . Kills 1 | . . . . 1 . . . Allies Corrupted . | . . . . . . . . Allies Melted 2 | . . . 2 . . . . Intel | -11 -10 -10 -9 -6 -5 -5 -4 ------- Run | Yrd Mat Sub Scr Fac Fac Ext Fac Active Infowar (turns) 4788 | 36 1196 475 1387 688 658 291 57 Optics 952 | . . . 3 . 658 291 . Sensors 456 | . . . . 456 . . . Structural 688 | . . . . 688 . . . Seismic 3132 | 36 1196 475 1384 41 . . . ECM 82 | . . . . . . 25 57 Robot Analysis Total . | . . . . . . . . Derelict Logs Recovered 5 | . . 1 4 . . . . Drone Launches . | . . . . . . . . Drone Recoveries . | . . . . . . . . Exploration | -11 -10 -10 -9 -6 -5 -5 -4 ------------- Run | Yrd Mat Sub Scr Fac Fac Ext Fac Turns Passed 8224 | 175 1196 1538 2938 1081 661 397 238 Spaces Moved 5173 | 83 577 873 1789 519 579 428 325 Core 456 | 17 . . . 32 277 130 . Treads 4027 | 66 577 873 1789 487 235 . . Legs . | . . . . . . . . Wheels 311 | . . . . . 67 244 . Hover 348 | . . . . . . 23 325 Flight 31 | . . . . . . 31 . Fastest Speed 45 | 50 160 160 160 50 50 45 51 Average Speed 140 | 141 160 160 160 154 104 79 62 Slowest Speed 240 | 160 160 160 200 240 170 100 160 Overloaded Moves . | . . . . . . . . Propulsion Burnouts . | . . . . . . . . Robots Hopped 2 | . . . . . . 2 . Potential Cave-ins . | . . . . . . . . Cave-ins Triggered . | . . . . . . . . Exploration Rate (%) 40 | 5 94 49 94 15 15 43 11 Regions Visited 7 Branch Regions 3 Pre-discovered Areas 3 | . 1 2 . . . . . Known Exits Taken 1 | . 1 . . . . . . Unknown Exits Taken 6 | 1 . 1 1 1 1 1 . Scrap Searched 13 | . . 3 10 . . . . Spaces Dug 28 | . . . . 27 1 . . Terrain Destroyed 109 | . . . 16 83 5 5 . Melee . | . . . . . . . . Projectile 12 | . . . . 8 2 2 . AOE 97 | . . . 16 75 3 3 . Terrain Rammed . | . . . . . . . . Walls Destroyed . | . . . . . . . . Machines Disabled . | . . . . . . . . Actions | -11 -10 -10 -9 -6 -5 -5 -4 --------- Run | Yrd Mat Sub Scr Fac Fac Ext Fac Total 5904 | 121 766 974 1877 725 619 463 359 Wait 251 | 3 97 59 6 62 6 6 12 Move 5162 | 82 576 872 1788 518 578 423 325 Hop 2 | . . . . . . 2 . Pick Up 105 | 15 17 8 32 15 6 6 6 Fast Attach 13 | . 1 . 2 4 5 1 . Attach 46 | 7 1 2 2 16 6 7 5 Detach 5 | . . . 2 1 2 . . Swap 30 | . 5 3 10 12 . . . Drop 72 | 1 12 6 34 17 2 . . Fire 191 | 13 56 24 1 71 10 16 . Melee . | . . . . . . . . Ram 14 | . . . . 1 . 2 11 Kick . | . . . . . . . . Crush 6 | . 1 . . 1 4 . . Escape Stasis . | . . . . . . . . Rewire 7 | . . . . 7 . . . Trap . | . . . . . . . . Miscellaneous . | . . . . . . . . Route ------- -11/Scrapyard -10/Materials (discovered 5 exits: *Mat x3 / *Min / *Sub) -10/Subcaves (discovered 3 exits: *Mat x2 / *Scr) -9/Scraptown (discovered 2 exits: *Fac x2) -6/Factory (discovered 2 exits: *Fac / *Low) -5/Factory -5/Extension (discovered 2 exits: [*Fac] / [*Cet]) -4/Factory History --------- Turn | Location | Event 14 | -11/Scrapyard | Discovered new exit (range 15) 176 | -11/Scrapyard | Entered Materials 307 | -10/Materials | Build established: Mutant 506 | -10/Materials | Discovered new exit (range 16) 795 | -10/Materials | Discovered new exit (range 8) 965 | -10/Materials | Discovered new exit (range 16) 1041 | -10/Materials | Learned Storage stockpile data 1093 | -10/Materials | Learned Storage garrison access intel 1105 | -10/Materials | Identified exit to Mines 1105 | -10/Materials | Identified exit to Subcaves 1108 | -10/Materials | Identified exit to Materials 1109 | -10/Materials | Learned 2 Storage zone layouts 1110 | -10/Materials | Learned 8 Materials zone layouts 1164 | -10/Materials | Learned location of Mines (-8) 1207 | -10/Materials | Build established: Scavenger-Mutant 1372 | -10/Materials | Entered Subcaves 1373 | -10/Subcaves | Approached by a straggling Scientist 1373 | -10/Subcaves | Identified exit to Materials 1981 | -10/Subcaves | Learned location of Zion (-6) 2145 | -10/Subcaves | Shifting Twisted Machinery released Sub. Shrapnel Launcher 2146 | -10/Subcaves | Shifting Twisted Machinery released Sub. Beam Cannon 2203 | -10/Subcaves | Build established: Mutant 2479 | -10/Subcaves | Met a Zionite searching for "candidates" 2691 | -10/Subcaves | Scientist uncovered a shortcut to Scraptown 2837 | -10/Subcaves | Visited 4L-MR0's lab 2856 | -10/Subcaves | Found Power Bank 2910 | -10/Subcaves | Entered Scraptown 3278 | -9/Scraptown | Discovered new exit (range 3) 3480 | -9/Scraptown | Scanned Subdweller tech in exchange for log data 3483 | -9/Scraptown | Learned Factory security intel 3485 | -9/Scraptown | Learned 8 Research zone layouts 3486 | -9/Scraptown | Learned Factory interactive machine intel 3488 | -9/Scraptown | Learned Research stockpile data 3526 | -9/Scraptown | Visited Cyclists 3608 | -9/Scraptown | Visited SPCMW 3985 | -9/Scraptown | Visited Shadow of the Wyrm 4042 | -9/Scraptown | Visited Bundlers 4156 | -9/Scraptown | Visited The Evicted 4216 | -9/Scraptown | Visited TADAMA 4272 | -9/Scraptown | Visited Symbiants 4428 | -9/Scraptown | Visited UFD Registry 4428 | -9/Scraptown | Registered with UFD as "Fluxdisc" 4487 | -9/Scraptown | Visited Science Guys 4564 | -9/Scraptown | Visited Junk Repository 4626 | -9/Scraptown | Visited Derelict Rescue Squad 4638 | -9/Scraptown | Found DRS Beacon 4715 | -9/Scraptown | Found Scrap Suit 4804 | -9/Scraptown | Discovered new exit (range 5) 4845 | -9/Scraptown | Visited Cartography Club 4889 | -9/Scraptown | Found Surveybot 17 Chip 4935 | -9/Scraptown | Visited A0-MCA Data Center 4944 | -9/Scraptown | Given a B- rating by A0-MCA 4946 | -9/Scraptown | Found A0-MCA's Component Scanner 5011 | -9/Scraptown | Visited DA-N13 Charitable Foundation 5037 | -9/Scraptown | Found DCF Scrap (30 items) 5125 | -9/Scraptown | Visited Curators Association 5431 | -9/Scraptown | Visited Scrap Suit Storage 5487 | -9/Scraptown | Visited Science Testing Area 5519 | -9/Scraptown | Visited Junk Repository 5650 | -9/Scraptown | Met Optimus 5650 | -9/Scraptown | Accepted into 0bPrime 5769 | -9/Scraptown | Civil war broke out across Scraptown 5822 | -9/Scraptown | Lost 7 allies 5848 | -9/Scraptown | Entered Factory 5848 | -6/Factory | Evolved 8 slots: Propulsion x4, Utility x4 5850 | -6/Factory | Loaded intel: 54 interactive machine locations 5860 | -6/Factory | Identified exit to DSF 5960 | -6/Factory | Discovered new exit (range 6) 5970 | -6/Factory | Identified exit to Lower Caves 6051 | -6/Factory | Found Hvy. Insulated Plating 6055 | -6/Factory | Found Hvy. Insulated Plating 6077 | -6/Factory | Build established: Scavenger-Assassin 6122 | -6/Factory | Loaded intel: 8 recycling unit locations 6511 | -6/Factory | Garrison activated, responded to threat 6607 | -6/Factory | Lost 4 parts (3u1w) 6912 | -6/Factory | Released all parts (4) 6927 | -6/Factory | Discovered new exit (range 4) 6929 | -6/Factory | Entered another Factory area 6929 | -5/Factory | Evolved 2 slots: Power x1, Utility x1 6932 | -5/Factory | Identified exit to DSF 6941 | -5/Factory | Lost 11 parts (1p6n3u1w) 7050 | -5/Factory | Build established: Mutant 7563 | -5/Factory | Discovered new exit (range 22) 7590 | -5/Factory | Entered Extension 7664 | -5/Extension | Spotted B-75 Beast 7792 | -5/Extension | Build established: Scavenger-Mutant 7881 | -5/Extension | Released all parts (8) 7900 | -5/Extension | Lost 3 parts (1p1n1u) 7910 | -5/Extension | Spotted B-75 Beast 7920 | -5/Extension | Core integrity fell below 50% 7960 | -5/Extension | Discovered new exit (range 16) 7961 | -5/Extension | Discovered new exit (range 15) 7987 | -5/Extension | Entered Factory 7987 | -4/Factory | Evolved 2 slots: Utility x2 8175 | -4/Factory | Spotted B-86 Titan 8189 | -4/Factory | Core integrity fell below 50% 8222 | -4/Factory | Core integrity fell below 20% 8225 | -4/Factory | Destroyed by G-67 Veteran with Field Laser Last Messages --------------- 08179_ K-01 Serf collects debris. 08182_ Penetrated by Slug. 08192_ Assembly Bed disabled. 08196_ Adv. ECM Suite destroyed. 08211_ Acquired Imp. Linear Gravjet. 08215_ Slammed into G-67 Veteran. 08215_ G-67 Veteran knocked back. 08215_ Imp. Linear Gravjet destroyed. 08216_ Slammed into G-67 Veteran. 08219_ Imp. Gyrokinetic Inverter broken. 08219_ Destabilizing: Short circuit. 08220_ Slammed into G-67 Veteran. 08220_ Destabilizing: Core damaged (-57). 08221_ Slammed into B-86 Titan. 08221_ Destabilizing: Core damaged (-34). 08221_ Penetrated by Slug. 08222_ Slammed into B-86 Titan. 08224_ Penetrated by Slug. 08225_ Slammed into B-86 Titan. [Achievement: This Is Interesting...] Map ----- +----------------------------------------------------+ | ?????????????????????????????????????? | | ?????????????????????????????????????? | | ?????????????????????????????????????? | | ?????????????????????????????????????? | | ?????????????????????????????????????? | | ?????????????????????????????????????? | | ?????????????????????????????????????? | | ?????????????????????????????????????? | | ?????????????????????????????????????? | | ?????????????????????????????????????? | | ?????????????????????????????????????? | | ?????????????????????????????????????? | | ?????????????????????????????????????? | | ?????????????????????????????????????? | | ?????????????????????????????????????? | | ?????????????????????????????????????? | | ?????????????????????????????????????? | | ??????????? ????????????????????????? | | ??????????? ???????????????????????? | | ??????????? ?????###########??????? | | ?#???????## ?#???# ! #??????? | | ?????? #???# #??????? | | ??? ###?# g ####???? | | ? ??"" "" ??# # """?? | | ? ??"" F" ???#####l#g### "T"?? | | ?? """" " #??????#g@g#??# ?? | | ???# """" "" "??????#BB##??# """"?? | | ???# """" """"###;BB##### """" ? | | #??# """" ![ # """" # | | !?# !] # """" # | | ?+ ! + """ # | | " ?# " """" # | | " ?# % # # | | " ?# ##"#####;############# % # | | " # # #???????# # | | " # # #???????# # | | " + + #???????# # | | " # # #???????######## | | " # # #??????????????? | | " # # #??????????????? | | " # #??????????????? | | " # #??????????????? | | # #??????????????? | | " #??????????????? | | [ " #??????????????? | | !%[ " #??????????????? | | ! "#############??????????????? | | #??????????????????????????? | | "####???????????????????????? | | ! ???????????????????????? | +----------------------------------------------------+ Best States ------------- Heat Dissipation 54 Energy Generation 19 Energy Capacity 315 Matter Stores 300 Matter Capacity 300 Sight Range 22 Robot Scan Range 16 Terrain Scan Density 10 ECM Strength 2 Armor Coverage 825 Resistance: EM 30 Evasion (%) 61 Recoil Reduction 6 Offensive Hacking 11 Defensive Hacking 12 Item Schematics ----------------- None Robot Schematics ------------------ None Fabricated ------------ Nothing Repaired ---------- Nothing Studied --------- None Alien Tech Used ----------------- None Achievements -------------- Brute Force Civilization 2243 Deductive Reasoning Heavy Suspicion Link The Feds Nice Directions, Buddy Physics Hates This One Trick Streaker This Is Interesting... Uncivil War Wiki Contributor Challenges ------------ None Game ------ Seed AngularLatentDoomcannon Manual? 0 Play Time 01:42:42 Cumulative 65.6 hours Start 2025.10.29 @ 16:46:04 End 2025.10.30 @ 01:09:13 Sessions 3 Manual Loads 0 Difficulty Rogue Special Mode None Game No. 57 Rogue 57 Adventurer 0 Explorer 0 Win Type - Total 0 Types 0/0/0/0/0/0/0/0/0/0 Lore% 26 Gallery% 37 Achievement% 25 Wizard Run 0 Options --------- Layout 0 ASCII 0 Keyboard 0 Movement Mouse Keybinds 0 Fullscreen 2 Font 18/X11 Map View 76x50 Zoom Use 14% Tactical HUD 1 Map Filters NONE Filters NONE Steam 1 RUN: 951bfd12-1f52-4b0e-8102-4795cced5ab0